bitfinex-derivatives/quotes_SOLF0:USTF0_20241002
["timestamp","ask_amount","ask_price","bid_price","bid_amount"]
[1727900739175,54.15,138.79,138.71,0.12502]
[1727900739383,3.6048,138.73,138.71,0.12502]
[1727900739984,54.15,138.79,138.71,0.12502]
[1727900740285,3.6049,138.72,138.71,0.12502]
[1727900744192,3.6045,138.74,138.71,0.12502]
[1727900744381,9.16,138.77,138.71,0.12502]
[1727900744890,3.6043,138.75,138.71,0.12502]
[1727900745087,9.16,138.78,138.71,0.12502]
[1727900746479,3.6045,138.74,138.71,0.12502]
[1727900746990,9.16,138.79,138.71,3.7722696]
[1727900747182,9.16,138.79,138.71,0.12502]
[1727900747490,3.6038,138.76,138.71,3.7805629]
[1727900747793,3.6038,138.76,138.71,0.12502]
[1727900747986,3.6037,138.77,138.71,3.72992]
[1727900748189,9.16,138.79,138.71,3.74588525]
[1727900748391,86.94,138.8,138.71,3.74588525]
[1727900748590,86.94,138.8,138.71,0.12502]
[1727900749088,3.6045,138.74,138.71,0.12502]
[1727900749386,86.94,138.8,138.71,0.12502]
[1727900749580,3.6049,138.72,138.71,0.12502]
[1727900751392,44.99,138.72,138.65,0.12502]
[1727900751780,3.6064,138.66,138.65,0.12502]
[1727900751985,9.16,138.69,138.65,0.12502]
[1727900752692,9.16,138.71,138.65,0.12502]
[1727900752897,3.6061,138.68,138.65,0.12502]
[1727900753092,54.15,138.72,138.65,0.12502]
[1727900753698,44.99,138.76,138.65,0.12502]
[1727900753996,3.6046,138.73,138.69,3.6055]
[1727900754189,9.16,138.76,138.68,3.52727536]
[1727900754381,9.16,138.76,138.65,0.12502]
[1727900754999,44.99,138.75,138.66,3.54205948]
[1727900755187,3.6053,138.71,138.67,3.606]
[1727900755686,3.6047,138.73,138.67,3.606]
[1727900755890,44.99,138.75,138.65,0.12502]
[1727900756196,3.6052,138.71,138.65,0.12502]
[1727900756395,44.99,138.75,138.65,0.12502]
[1727900756795,3.6061,138.68,138.65,0.12502]
[1727900756994,44.99,138.75,138.65,0.12502]
[1727900757496,3.6051,138.72,138.65,0.12502]
[1727900757803,1.3207,138.74,138.65,0.12502]
[1727900758186,44.99,138.73,138.65,0.12502]
[1727900758586,3.6064,138.66,138.65,0.12502]
[1727900759800,9.16,138.71,138.65,0.12502]
[1727900760388,1.4369,138.73,138.65,0.12502]
[1727900760594,44.99,138.76,138.65,9.28502]
[1727900760893,3.6052,138.71,138.67,3.606]
[1727900761098,48.56580474,138.76,138.65,0.12502]
[1727900761399,3.6047,138.73,138.65,0.12502]
[1727900761605,48.56580474,138.76,138.65,0.12502]
[1727900762108,3.6055,138.7,138.66,3.6063]
[1727900762609,48.56580474,138.76,138.65,0.12502]
[1727900763401,3.6047,138.73,138.65,0.12502]
[1727900763699,48.56580474,138.76,138.65,0.12502]
[1727900763900,0.12502,138.77,138.66,44.99]
[1727900764103,0.12502,138.77,138.65,0.12502]
[1727900764104,0.12502,138.77,138.67,2.7619]
[1727900764410,44.99,138.76,138.67,2.7619]
[1727900764996,3.6055,138.7,138.67,2.7619]
[1727900765196,3.53160988,138.75,138.67,2.7619]
[1727900765399,44.99,138.76,138.67,2.7619]
[1727900765605,0.12502,138.77,138.67,2.7619]
[1727900765606,3.6053,138.71,138.67,6.3681]
[1727900765897,27.68,138.75,138.67,2.7619]
[1727900766103,3.6053,138.71,138.67,2.7619]
[1727900766300,31.22819529,138.75,138.67,2.7619]
[1727900766506,0.12502,138.77,138.67,2.7619]
[1727900766806,3.69232456,138.77,138.67,2.7619]
[1727900767203,3.6044,138.74,138.69,3.6056]
[1727900767505,3.69232456,138.77,138.67,2.7619]
[1727900767819,0.12502,138.77,138.7,27.68]
[1727900768099,0.12502,138.77,138.71,1.3397]
[1727900768294,3.72872,138.77,138.73,3.6044]
[1727900768489,0.12502,138.77,138.72,27.68]
[1727900768704,0.12502,138.83,138.74,27.68]
[1727900769000,0.12502,138.83,138.75,10.4779]
[1727900769494,3.603,138.8,138.76,3.6037]
[1727900769696,0.12502,138.83,138.75,10.4779]
[1727900769892,3.6032,138.79,138.75,14.0819]
[1727900770095,0.12502,138.83,138.75,1.3179]
[1727900770408,54.26502,138.83,138.75,1.3179]
[1727900770991,3.6033,138.79,138.75,4.9219]
[1727900771200,54.26502,138.83,138.75,4.9219]
[1727900771805,3.6026,138.81,138.75,4.9219]
[1727900772005,54.26502,138.83,138.75,4.9219]
[1727900772213,3.51588084,138.82,138.75,1.3179]
[1727900772413,3.6034,138.78,138.75,1.3179]
[1727900773018,54.26502,138.83,138.75,1.3179]
[1727900773608,3.66631254,138.82,138.75,1.3179]
[1727900773815,3.66631254,138.82,138.72,3.63076177]
[1727900773816,3.66631254,138.82,138.74,3.6042]
[1727900774207,3.66631254,138.82,138.73,9.16]
[1727900774403,3.66631254,138.82,138.74,3.6043]
[1727900774809,3.6033,138.78,138.74,3.6043]
[1727900775314,3.6025,138.81,138.77,3.6034]
[1727900775511,0.12502,138.83,138.78,54.14]
[1727900775706,0.12502,138.83,138.8,44.98]
[1727900775910,3.6012,138.87,138.82,3.6023]
[1727900776206,0.12502,138.89,138.82,3.58810652]
[1727900776419,3.6019,138.84,138.81,1.3787]
[1727900776811,0.12502,138.89,138.81,1.3787]
[1727900777009,44.98,138.88,138.79,2.7139]
[1727900777716,0.12502,138.89,138.79,6.27796738]
[1727900778015,3.6008,138.88,138.84,3.6017]
[1727900778405,0.12502,138.89,138.84,3.6017]
[1727900778604,0.12502,138.89,138.82,9.16]
[1727900778814,0.12502,138.89,138.83,44.98]
[1727900779018,3.72562,138.89,138.85,3.6014]
[1727900779214,0.12502,138.89,138.83,44.98]
[1727900779417,0.12502,138.89,138.85,44.98]
[1727900779713,0.12502,138.95,138.85,44.98]
[1727900779917,0.12502,138.95,138.87,44.98]
[1727900780126,0.12502,138.95,138.92,3.5995]
[1727900780306,0.12502,139.01,138.93,9.16]
[1727900780615,3.72262,139.01,138.97,3.5983]
[1727900780817,0.12502,139.01,138.95,3.67917845]
[1727900781008,0.12502,139.01,138.93,9.16]
[1727900781213,0.12502,139.01,138.94,3.56072755]
[1727900781717,3.598,138.99,138.95,3.5987]
[1727900781906,0.12502,139.01,138.94,3.56072755]
[1727900782111,0.12502,139.01,138.93,9.16]
[1727900782323,0.12502,139.01,138.94,3.63345424]
[1727900782517,0.12502,139.01,138.93,9.16]
[1727900782825,0.12502,139.01,138.91,9.16]
[1727900783309,0.12502,139.01,138.9,3.6]
[1727900783505,44.98,138.99,138.91,9.16]
[1727900783707,48.65145619,138.99,138.91,9.16]
[1727900784621,3.599,138.95,138.9,3.6002]
[1727900784807,44.98,138.99,138.89,9.26502]
[1727900785011,3.5989,138.95,138.91,3.5999]
[1727900785215,44.98,138.99,138.89,9.26502]
[1727900785521,48.59313339,138.99,138.89,9.26502]
[1727900785826,48.59313339,138.99,138.89,12.86542]
[1727900786027,44.98,138.97,138.89,0.12502]
[1727900786318,3.5993,138.94,138.89,3.72542]
[1727900786716,3.5984,138.97,138.92,3.5996]
[1727900786907,55.57732,139.01,138.89,54.24502]
[1727900787729,3.5983,138.98,138.93,3.5993]
[1727900787916,55.57732,139.01,138.89,54.24502]
[1727900788825,3.5987,138.96,138.89,54.24502]
[1727900789326,3.5987,138.96,138.92,3.5995]
[1727900789623,55.57732,139.01,138.89,54.24502]
[1727900790428,0.12502,139.01,138.92,44.98]
[1727900790725,0.12502,139.01,138.93,1.4244]
[1727900790925,0.12502,139.01,138.94,9.14]
[1727900791228,0.12502,139.01,138.94,12.71564182]
[1727900791723,0.12502,139.01,138.95,3.5988]
[1727900792425,0.12502,139.01,138.93,1.4244]
[1727900792426,0.12502,139.01,138.93,10.5644]
[1727900793025,0.12502,139.01,138.94,3.5991]
[1727900793328,0.12502,139.01,138.93,10.5644]
[1727900793531,0.12502,139.01,138.94,3.5991]
[1727900794021,3.5983,138.98,138.94,3.5991]
[1727900794214,0.12502,139.01,138.95,3.6657204]
[1727900794529,0.12502,139.01,138.95,3.5988]
[1727900794725,0.12502,139.01,138.93,1.4244]
[1727900795119,3.5986,138.97,138.93,1.4244]
[1727900795423,0.12502,139.01,138.93,1.4244]
[1727900795624,3.598,138.99,138.92,9.14]
[1727900795831,0.12502,139.01,138.92,9.14]
[1727900797123,0.12502,139.01,138.92,36.78]
[1727900797322,0.12502,139.01,138.95,3.5987]
[1727900797323,3.598,138.99,138.95,3.5987]
[1727900797626,0.12502,139.01,138.92,36.78]
[1727900798021,0.12502,139.01,138.92,9.14]
[1727900798424,3.5985,138.97,138.93,3.5994]
[1727900799215,0.12502,139.01,138.9,1.4196]
[1727900799426,27.64,138.99,138.9,1.4196]
[1727900799621,3.66516821,138.98,138.9,1.4196]
[1727900800331,3.5993,138.94,138.9,5.0197]
[1727900800526,3.66516821,138.98,138.9,1.4196]
[1727900800728,3.5996,138.93,138.9,1.4196]
[1727900800929,27.64,138.97,138.89,0.12502]
[1727900801230,27.64,138.93,138.7,227.0]
[1727900801426,27.64,138.9,138.8,4.9996]
[1727900801623,9.14,138.89,138.8,4.92312155]
[1727900802226,27.64,138.94,138.8,32.56312155]
[1727900802533,31.32635055,138.94,138.8,32.56312155]
[1727900802719,9.14,138.93,138.8,32.56312155]
[1727900802923,9.14,138.93,138.81,3.6025]
[1727900803328,9.14,138.93,138.8,32.56312155]
[1727900803526,3.6016,138.85,138.8,8.52582155]
[1727900803729,9.14,138.88,138.8,4.92312155]
[1727900804428,3.6015,138.86,138.8,8.52572155]
[1727900805029,3.6018,138.84,138.8,1.3969]
[1727900807733,9.14,138.88,138.8,1.3969]
[1727900808241,3.6017,138.85,138.8,4.9997]
[1727900809041,3.6012,138.87,138.82,3.6023]
[1727900809439,3.6012,138.87,138.83,3.72702]
[1727900809827,3.6008,138.88,138.83,0.12502]
[1727900810031,0.12502,139.19,138.86,27.64]
[1727900810032,0.12502,138.95,138.86,27.64]
[1727900810231,0.12502,138.95,138.88,27.64]
[1727900810426,0.12502,138.95,138.89,1.3315]
[1727900810945,3.5998,138.92,138.89,1.3315]
[1727900812935,3.5998,138.92,138.89,4.9319]
[1727900813334,3.5995,138.93,138.89,4.9319]
[1727900814029,3.5993,138.94,138.91,3.5999]
[1727900814231,0.12502,138.95,138.91,3.5999]
[1727900814545,3.72392,138.95,138.91,3.5999]
[1727900814838,0.12502,138.95,138.91,3.5999]
[1727900815036,0.12502,138.95,138.9,31.2402]
[1727900815335,3.5993,138.94,138.9,31.2402]
[1727900815740,0.12502,138.95,138.9,31.2402]
[1727900816139,3.5995,138.93,138.9,31.2402]
[1727900816329,0.12502,138.95,138.9,31.2402]
[1727900816536,9.14,139.03,138.93,31.2392]
[1727900816741,3.5987,138.96,138.93,31.2392]
[1727900817041,3.5987,138.96,138.94,3.60891253]
[1727900817833,9.14,139.03,138.93,27.64]
[1727900818654,3.598,138.99,138.93,27.64]
[1727900818840,9.14,139.03,138.93,27.64]
[1727900819233,3.5986,138.97,138.93,27.64]
[1727900819444,3.5986,138.97,138.93,31.2394]
[1727900819643,3.5986,138.97,138.93,27.64]
[1727900819942,3.72242,139.01,138.96,3.5986]
[1727900820140,3.72242,139.01,138.96,3.52704757]
[1727900820340,0.12502,139.01,138.95,28.9546]
[1727900820742,3.5978,139.0,138.96,3.5985]
[1727900820940,0.12502,139.01,138.95,4.96150744]
[1727900821945,0.12502,139.01,138.94,1.392]
[1727900823450,3.5985,138.97,138.94,1.392]
[1727900824447,3.5989,138.95,138.91,9.14]
[1727900824842,3.5999,138.91,138.9,1.3146]
[1727900825041,3.5999,138.91,138.89,1.45652]
[1727900825244,27.64,138.97,138.89,1.45652]
[1727900825950,3.5996,138.93,138.89,1.45652]
[1727900826348,4.1908,138.98,138.89,1.45652]
[1727900826951,3.5999,138.92,138.89,1.45652]
[1727900827352,4.1908,138.98,138.89,1.45652]
[1727900828363,3.5996,138.93,138.89,5.05692]
[1727900828654,3.5996,138.93,138.89,1.45652]
[1727900829356,3.599,138.95,138.89,1.45652]
[1727900829661,1.4129,138.98,138.89,1.45652]
[1727900829861,3.5988,138.96,138.89,1.45652]
[1727900830052,1.4129,138.98,138.89,1.45652]
[1727900830445,3.6002,138.9,138.89,1.45652]
[1727900831055,2.7241,138.98,138.89,1.45652]
[1727900831056,3.5988,138.96,138.89,1.45652]
[1727900831255,2.7241,138.98,138.89,1.45652]
[1727900831455,4.1114,138.98,138.89,1.45652]
[1727900831759,3.6002,138.9,138.89,0.12502]
[1727900838761,10.5158,138.95,138.89,0.12502]
[1727900838967,10.12,138.97,138.89,0.12502]
[1727900839662,3.5996,138.93,138.89,0.12502]
[1727900840164,3.6002,138.9,138.89,0.12502]
[1727900841364,31.19645527,138.92,138.84,1.3981]
[1727900841669,3.6015,138.85,138.84,1.3981]
[1727900842878,3.6015,138.85,138.83,1.43172]
[1727900844382,9.12,138.92,138.83,1.43172]
[1727900844875,9.12,138.92,138.85,3.6015]
[1727900845074,3.6009,138.88,138.85,7.14643172]
[1727900845370,0.12502,138.95,138.9,3.6002]
[1727900845578,3.6,138.91,138.89,27.64]
[1727900846275,0.12502,138.95,138.89,27.64]
[1727900846573,3.5999,138.92,138.89,27.64]
[1727900846773,0.12502,138.95,138.9,1.3967]
[1727900846976,0.12502,138.95,138.9,14.1169]
[1727900847172,0.12502,138.95,138.91,27.64]
[1727900847376,0.12502,139.01,138.93,27.64]
[1727900847568,3.598,138.99,138.94,2.8202]
[1727900847766,0.12502,139.01,138.95,9.12]
[1727900847969,0.12502,139.01,138.95,12.7189]
[1727900848164,0.12502,139.01,138.95,9.12]
[1727900848573,0.12502,139.01,138.96,3.5985]
[1727900848974,0.12502,139.01,138.96,27.64]
[1727900849175,0.12502,139.01,138.96,31.2385]
[1727900849379,3.5977,139.0,138.96,31.2385]
[1727900850687,0.12502,139.07,138.99,27.64]
[1727900850886,0.12502,139.07,139.01,27.64]
[1727900851183,0.12502,139.07,139.03,27.64]
[1727900851372,1.0,139.1,139.03,31.25812729]
[1727900851979,3.5959,139.07,139.04,3.5964]
[1727900852180,3.5959,139.07,139.05,9.12]
[1727900852975,1.0,139.1,139.01,0.12502]
[1727900853177,28.64,139.1,139.01,3.74926142]
[1727900853394,1.0,139.1,139.01,0.12502]
[1727900853588,3.5961,139.06,139.03,31.2367]
[1727900853792,1.0,139.1,139.03,34.75556256]
[1727900853996,1.0,139.1,139.03,31.15886256]
[1727900854178,3.5956,139.08,139.03,31.15886256]
[1727900854485,1.0,139.1,139.03,31.15886256]
[1727900854689,1.0,139.1,139.05,27.64]
[1727900854991,1.0,139.1,139.05,36.76]
[1727900855487,1.0,139.1,139.06,3.58308639]
[1727900855696,1.0,139.1,139.05,36.76]
[1727900855880,1.0,139.1,139.06,2.8365]
[1727900856188,1.0,139.1,139.07,27.64]
[1727900856385,1.0,139.1,139.07,31.2356]
[1727900856789,1.0,139.1,139.07,27.64]
[1727900856992,1.0,139.1,139.08,3.6693825]
[1727900857680,4.5952,139.1,139.08,3.6693825]
[1727900857879,1.0,139.1,139.08,3.6693825]
[1727900858185,1.0,139.1,139.06,4.1367]
[1727900858383,1.0,139.1,139.07,12.64623324]
[1727900859091,4.5952,139.1,139.07,12.64623324]
[1727900860291,1.0,139.1,139.07,43.88183324]
[1727900861089,4.5952,139.1,139.07,12.64623324]
[1727900861488,1.0,139.1,139.07,12.64623324]
[1727900862383,1.0,139.1,139.07,9.12]
[1727900862903,4.5951,139.1,139.07,9.12]
[1727900863089,4.5951,139.1,139.07,12.79703666]
[1727900864400,4.5951,139.1,139.08,3.5954]
[1727900864401,1.0,139.1,139.08,3.5954]
[1727900864583,1.0,139.1,139.07,40.43703666]
[1727900865386,1.0,139.1,139.08,3.5954]
[1727900865998,1.0,139.12,139.1,3.595]
[1727900866195,1.0,139.12,139.1,31.235]
[1727900866699,0.12502,139.13,139.11,3.5946]
[1727900866899,1.0,139.17,139.12,36.72]
[1727900867197,3.593,139.18,139.15,31.2335]
[1727900867409,0.12502,139.19,139.15,27.64]
[1727900867785,3.593,139.18,139.15,31.2336]
[1727900867990,0.12502,139.19,139.15,27.64]
[1727900868393,3.71782,139.19,139.16,3.5933]
[1727900868699,1.0,139.2,139.17,27.64]
[1727900868893,1.0,139.2,139.19,3.5927]
[1727900869091,1.0,139.2,139.19,7.24497665]
[1727900869290,1.0,139.22,139.19,3.65227665]
[1727900869601,1.0,139.22,139.18,9.08]
[1727900871197,1.0,139.22,139.19,27.64]
[1727900871501,1.0,139.22,139.19,31.31350754]
[1727900872293,1.0,139.22,139.2,3.5923]
[1727900872901,1.0,139.22,139.19,31.31350754]
[1727900873102,4.592,139.22,139.19,34.90620754]
[1727900873607,3.5922,139.21,139.2,9.08]
[1727900874102,1.0,139.22,139.2,9.08]
[1727900874905,1.12502,139.25,139.2,9.08]
[1727900875095,3.5915,139.24,139.21,3.5922]
[1727900875601,1.12502,139.25,139.2,9.08]
[1727900875904,3.592,139.22,139.2,9.08]
[1727900876096,1.12502,139.25,139.2,9.08]
[1727900876903,3.5917,139.23,139.2,12.6723]
[1727900877692,1.12502,139.25,139.19,27.64]
[1727900877898,1.12502,139.25,139.19,9.08]
[1727900878097,1.12502,139.25,139.16,1.3496]
[1727900878307,1.12502,139.25,139.17,9.08]
[1727900878798,3.5927,139.19,139.17,9.08]
[1727900879000,1.12502,139.25,139.13,2.94092]
[1727900879194,3.5919,139.22,139.15,9.08]
[1727900879393,2.7721,139.21,139.15,9.08]
[1727900880307,3.5939,139.15,139.13,27.76502]
[1727900881600,2.7721,139.21,139.13,27.76502]
[1727900882010,3.5928,139.19,139.15,3.5936]
[1727900882302,3.5928,139.19,139.13,27.76502]
[1727900882303,2.7721,139.21,139.13,27.76502]
[1727900882505,3.5928,139.19,139.16,3.5934]
[1727900882704,2.7721,139.21,139.15,27.64]
[1727900883612,2.7721,139.21,139.13,27.76502]
[1727900884004,3.5936,139.16,139.13,27.76502]
[1727900884199,2.7721,139.21,139.13,27.76502]
[1727900884510,2.7721,139.21,139.13,0.12502]
[1727900884511,3.594,139.14,139.13,0.12502]
[1727900888811,3.594,139.14,139.07,95.35870484]
[1727900888812,27.76502,139.19,139.07,104.43870484]
[1727900889328,3.5955,139.09,139.07,104.43870484]
[1727900889606,3.53835078,139.15,139.07,0.12502]
[1727900889808,3.5955,139.08,139.07,0.12502]
[1727900890116,2.8005,139.14,139.07,0.12502]
[1727900890417,3.5954,139.09,139.07,0.12502]
[1727900890709,2.8005,139.14,139.07,0.12502]
[1727900891408,3.5955,139.09,139.07,0.12502]
[1727900892012,2.8005,139.14,139.07,0.12502]
[1727900892318,0.12502,139.19,139.11,27.64]
[1727900892505,1.4288,139.18,139.11,27.64]
[1727900892823,3.5942,139.14,139.11,27.64]
[1727900893520,3.5944,139.13,139.11,27.64]
[1727900894110,3.5941,139.14,139.11,27.64]
[1727900894618,3.5943,139.13,139.11,27.64]
[1727900894814,2.7372,139.18,139.09,27.64]
[1727900895015,30.3772,139.18,139.07,0.12502]
[1727900895215,3.5955,139.08,139.07,0.12502]
[1727900896825,3.5949,139.11,139.08,3.5954]
[1727900897035,11.7972,139.18,139.07,27.76502]
[1727900897224,13.1091,139.18,139.07,27.76502]
[1727900897529,40.7491,139.18,139.07,27.76502]
[1727900897818,7.1866,139.17,139.07,27.76502]
[1727900898025,3.5955,139.09,139.07,27.76502]
[1727900898631,7.1866,139.17,139.07,27.76502]
[1727900898920,13.1091,139.18,139.09,27.64]
[1727900899113,3.5944,139.13,139.09,31.2351]
[1727900899310,4.0491,139.18,139.09,27.64]
[1727900899721,4.0491,139.18,139.1,3.5949]
[1727900900026,4.0491,139.18,139.09,27.64]
[1727900900221,3.5944,139.13,139.09,27.64]
[1727900900625,3.5944,139.13,139.1,3.595]
[1727900901123,4.0491,139.18,139.12,27.64]
[1727900901316,3.594,139.14,139.12,31.2344]
[1727900902224,3.594,139.14,139.12,27.64]
[1727900902622,3.594,139.14,139.13,3.50919217]
[1727900902813,2.7372,139.18,139.13,3.50919217]
[1727900903020,3.5936,139.16,139.13,3.50919217]
[1727900903718,3.5936,139.16,139.13,7.10329217]
[1727900904116,7.1846,139.21,139.13,3.50919217]
[1727900904321,4.1981,139.22,139.12,27.64]
[1727900904522,4.1981,139.22,139.14,27.64]
[1727900904731,4.1981,139.22,139.14,31.21579059]
[1727900905225,3.5931,139.18,139.15,3.5936]
[1727900905427,4.1981,139.22,139.14,31.21579059]
[1727900905821,3.5931,139.18,139.14,34.80969059]
[1727900906027,4.1981,139.22,139.14,34.80969059]
[1727900906527,3.5934,139.17,139.14,34.80969059]
[1727900906727,2.825,139.22,139.14,31.21579059]
[1727900907022,17.36742,139.25,139.14,31.21579059]
[1727900907023,1.12502,139.25,139.16,27.64]
[1727900907223,1.12502,139.25,139.13,27.76502]
[1727900907224,1.12502,139.25,139.2,27.64]
[1727900907418,1.12502,139.25,139.21,3.5919]
[1727900907627,1.12502,139.25,139.23,27.64]
[1727900907820,1.0,139.3,139.24,3.57814991]
[1727900908129,1.0,139.3,139.25,27.64]
[1727900908522,3.5906,139.28,139.25,31.16100589]
[1727900908720,1.0,139.3,139.23,27.64]
[1727900909026,1.0,139.3,139.23,31.29901408]
[1727900910029,3.5911,139.26,139.23,31.29901408]
[1727900911737,3.5911,139.26,139.23,34.89071408]
[1727900912041,1.0,139.3,139.23,31.29901408]
[1727900912220,3.5913,139.25,139.23,31.29901408]
[1727900912421,1.0,139.3,139.23,31.29901408]
[1727900913432,3.5913,139.25,139.23,31.29901408]
[1727900913832,1.0,139.3,139.2,27.64]
[1727900914020,3.65448779,139.28,139.19,0.12502]
[1727900914224,2.6841,139.26,139.19,0.12502]
[1727900915131,3.592,139.22,139.19,3.71762]
[1727900915933,2.6841,139.26,139.19,0.12502]
[1727900916118,3.5924,139.2,139.19,0.12502]
[1727900916524,2.6841,139.26,139.19,0.12502]
[1727900916736,1.301,139.26,139.2,27.64]
[1727900916936,1.301,139.26,139.21,3.54535845]
[1727900917234,3.5913,139.25,139.22,3.5917]
[1727900917627,3.591,139.26,139.23,3.5915]
[1727900918427,1.12518,139.27,139.22,16.24529199]
[1727900918428,3.5913,139.25,139.22,16.24529199]
[1727900919131,3.5909,139.26,139.23,3.5915]
[1727900919333,1.12518,139.27,139.19,0.12502]
[1727900919532,1.12518,139.27,139.19,9.18502]
[1727900919734,3.5924,139.2,139.19,0.12502]
[1727900920035,1.12518,139.27,139.13,27.76502]
[1727900920036,9.06,139.23,139.13,27.76502]
[1727900920338,2.6536,139.22,139.13,0.12502]
[1727900920528,3.56208554,139.21,139.13,0.12502]
[1727900920728,2.6536,139.22,139.13,0.12502]
[1727900922039,9.06,139.21,139.13,27.76502]
[1727900922339,3.5925,139.2,139.16,27.64]
[1727900922837,3.5925,139.2,139.16,31.2334]
[1727900923034,1.3315,139.22,139.16,27.64]
[1727900923230,3.51781095,139.21,139.14,9.06]
[1727900923540,3.594,139.14,139.13,0.12502]
[1727900925336,27.64,139.16,139.04,105.22]
[1727900925633,27.64,139.16,139.04,27.64]
[1727900925634,1.4241,139.13,139.04,27.64]
[1727900925840,3.5955,139.08,139.03,1.3357]
[1727900927635,3.5955,139.08,139.04,27.64]
[1727900927840,3.5955,139.08,139.04,31.2364]
[1727900928347,1.4241,139.13,139.06,27.64]
[1727900928546,1.4241,139.13,139.06,31.236]
[1727900929143,3.5952,139.1,139.06,31.236]
[1727900929332,1.4407,139.18,139.09,27.64]
[1727900929530,2.8331,139.18,139.11,27.64]
[1727900929942,2.8331,139.18,139.12,3.5944]
[1727900930127,2.8331,139.18,139.11,27.64]
[1727900930530,2.8331,139.18,139.12,3.5945]
[1727900930743,0.12502,139.19,139.14,27.64]
[1727900931336,3.5935,139.16,139.14,27.64]
[1727900931540,0.12502,139.19,139.14,27.64]
[1727900932045,3.5937,139.15,139.14,27.64]
[1727900932341,0.12502,139.19,139.11,27.64]
[1727900932531,3.5939,139.15,139.11,27.64]
[1727900933349,3.594,139.14,139.11,27.64]
[1727900933643,0.12502,139.19,139.09,27.64]
[1727900933845,3.5947,139.12,139.09,36.68]
[1727900935046,3.5943,139.13,139.1,3.595]
[1727900935242,3.5943,139.13,139.09,36.68]
[1727900935439,9.16502,139.19,139.09,36.68]
[1727900935845,3.595,139.1,139.09,36.68]
[1727900936643,9.16502,139.19,139.07,88.17162]
[1727900936838,3.5955,139.09,139.07,88.17162]
[1727900937247,3.5954,139.09,139.07,88.17162]
[1727900937446,27.64,139.18,139.07,0.12502]
[1727900938134,1.29291602,139.17,139.07,0.12502]
[1727900938335,3.5955,139.08,139.07,0.12502]
[1727900938546,3.61750539,139.08,139.02,1.001]
[1727900938753,2.7752,139.07,139.02,1.001]
[1727900938944,3.5967,139.04,139.02,1.001]
[1727900939140,2.7752,139.07,139.02,1.001]
[1727900940245,3.5966,139.05,139.02,1.001]
[1727900940648,2.7752,139.07,139.02,1.001]
[1727900940944,3.5968,139.03,139.02,1.001]
[1727900941652,3.5967,139.04,139.02,1.001]
[1727900943055,3.5968,139.03,139.02,1.001]
[1727900945061,2.7752,139.07,139.02,1.001]
[1727900945257,1.4436,139.1,139.03,27.64]
[1727900945557,2.8192,139.12,139.03,27.64]
[1727900945759,3.5964,139.05,139.03,27.64]
[1727900946460,2.8192,139.12,139.03,27.64]
[1727900946851,3.5962,139.06,139.03,27.64]
[1727900947251,2.8192,139.12,139.02,1.001]
[1727900947450,3.5968,139.03,139.02,1.001]
[1727900948749,36.68,139.08,139.01,0.12502]
[1727900948750,3.5971,139.02,139.01,0.12502]
[1727900948953,1.4034,139.07,139.01,0.12502]